fUST/lending_fUST_20250906
["ID","MTS","AMOUNT","RATE_DAILY","PERIOD"]
[383811036,1757124646180,-343.39521146,0.00013972,2]
[383811037,1757124646189,-497.79242964,0.00013972,2]
[383811038,1757124646199,-480.0,0.00013972,2]
[383811039,1757124646208,-483.45850826,0.00013972,2]
[383811040,1757124646218,-481.90155833,0.00013972,2]
[383811041,1757124646228,-480.0,0.00013972,2]
[383811042,1757124646238,-480.61745105,0.00013972,2]
[383811043,1757124646247,-480.0,0.00013972,2]
[383811044,1757124646257,-480.0,0.00013972,2]
[383811045,1757124646267,-481.66237895,0.00013972,2]
[383811046,1757124646276,-480.0,0.00013972,2]
[383811047,1757124646286,-480.0,0.00013972,2]
[383811048,1757124646296,-480.0,0.00013972,2]
[383811049,1757124646305,-481.04892226,0.00013972,2]
[383811050,1757124646315,-483.2279654,0.00013972,2]
[383811051,1757124646324,-480.0,0.00013972,2]
[383811052,1757124646334,-480.0,0.00013972,2]
[383811053,1757124646343,-480.0,0.00013972,2]
[383811054,1757124646353,-481.64997961,0.00013972,2]
[383811055,1757124646363,-481.39080992,0.00013972,2]
[383811056,1757124646372,-515.40489491,0.00013972,2]
[383811057,1757124646381,-480.0,0.00013972,2]
[383811058,1757124646392,-480.0,0.00013972,2]
[383811059,1757124646401,-480.0,0.00013972,2]
[383811060,1757124646410,-480.0,0.00013972,2]
[383811061,1757124646419,-480.0,0.00013972,2]
[383811062,1757124646429,-355.35455711,0.00013972,2]
[383811063,1757124646551,-480.0,0.00013972,2]
[383811064,1757124646562,-1386.19,0.00013972,2]
[383811065,1757124646573,-480.0,0.00013972,2]
[383811066,1757124646583,-483.35329086,0.00013972,2]
[383811067,1757124646594,-21405.55,0.00013972,2]
[383811068,1757124646603,-480.0,0.00013972,2]
[383811069,1757124646613,-480.0,0.00013972,2]
[383811070,1757124646623,-480.0,0.00013972,2]
[383811071,1757124646632,-567.54,0.00013972,2]
[383811072,1757124646642,-286.00042216,0.00013972,2]
[383811073,1757124646652,-480.0,0.00013972,2]
[383811074,1757124646662,-480.0,0.00013972,2]
[383811075,1757124646673,-480.0,0.00013972,2]
[383811076,1757124646684,-532.47,0.00013972,2]
[383811077,1757124646695,-480.0,0.00013972,2]
[383811078,1757124646705,-480.0,0.00013972,2]
[383811079,1757124646714,-227.75321013,0.00013972,2]
[383811080,1757124646724,-578.11259814,0.00013972,2]
[383811081,1757124646734,-480.0,0.00013972,2]
[383811082,1757124646745,-487.57658633,0.00013972,2]
[383811083,1757124646755,-480.0,0.00013972,2]
[383811084,1757124646764,-480.0,0.00013972,2]
[383811085,1757124646774,-480.0,0.00013972,2]
[383811086,1757124646783,-480.0,0.00013972,2]
[383811087,1757124646793,-480.0,0.00013972,2]
[383811088,1757124646803,-822.54,0.00013972,2]
[383811089,1757124646813,-480.0,0.00013972,2]
[383811090,1757124646823,-480.0,0.00013972,2]
[383811091,1757124646832,-480.0,0.00013972,2]
[383811092,1757124646842,-480.0,0.00013972,2]
[383811093,1757124646851,-480.0,0.00013972,2]
[383811094,1757124646861,-154.436338,0.00013972,2]
[383811095,1757124646870,-480.0,0.00013972,2]
[383811096,1757124646880,-480.0,0.00013972,2]
[383811097,1757124646890,-480.0,0.00013972,2]
[383811098,1757124646901,-480.0,0.00013972,2]
[383811099,1757124646913,-489.28580039,0.00013972,2]
[383811100,1757124646923,-480.0,0.00013972,2]
[383811101,1757124646933,-480.0,0.00013972,2]
[383811102,1757124646943,-480.0,0.00013972,2]
[383811103,1757124646952,-480.0,0.00013972,2]
[383811104,1757124646961,-199.24139442,0.00013972,2]
[383811105,1757124646971,-480.0,0.00013972,2]
[383811106,1757124646980,-480.0,0.00013972,2]
[383811107,1757124646989,-480.0,0.00013972,2]
[383811108,1757124646999,-482.62800926,0.00013972,2]
[383811109,1757124647009,-480.0,0.00013972,2]
[383811110,1757124647019,-480.0,0.00013972,2]
[383811111,1757124647028,-480.0,0.00013972,2]
[383811112,1757124647038,-480.0,0.00013972,2]
[383811113,1757124647049,-480.0,0.00013972,2]
[383811114,1757124647059,-480.0,0.00013972,2]
[383811115,1757124647070,-480.0,0.00013972,2]
[383811116,1757124647080,-480.0,0.00013972,2]
[383811117,1757124647092,-485.11924419,0.00013972,2]
[383811118,1757124647102,-480.0,0.00013972,2]
[383811119,1757124647111,-480.0,0.00013972,2]
[383811120,1757124647123,-484.88840081,0.00013972,2]
[383811121,1757124647133,-480.0,0.00013972,2]
[383811122,1757124647144,-162.72878956,0.00013972,2]
[383811123,1757124647154,-480.0,0.00013972,2]
[383811124,1757124647163,-498.31765793,0.00013972,2]
[383811125,1757124647172,-480.0,0.00013972,2]
[383811126,1757124647181,-187.12525922,0.00013972,2]
[383811127,1757124647191,-480.0,0.00013972,2]
[383811128,1757124647201,-482.02343997,0.00013972,2]
[383811129,1757124647211,-509.65045643,0.00013972,2]
[383811130,1757124647221,-529.86110899,0.00013972,2]
[383811131,1757124647231,-480.0,0.00013972,2]
[383811132,1757124647240,-480.0,0.00013972,2]
[383811133,1757124647250,-174.15237544,0.00013972,2]
[383811134,1757124647259,-544.27,0.00013972,2]
[383811135,1757124647270,-480.0,0.00013972,2]
[383811136,1757124647279,-480.0,0.00013972,2]
[383811137,1757124647289,-480.0,0.00013972,2]
[383811138,1757124647299,-480.0,0.00013972,2]
[383811139,1757124647308,-480.0,0.00013972,2]
[383811140,1757124647316,-480.0,0.00013972,2]
[383811141,1757124647325,-4482.09,0.00013972,2]
[383811142,1757124647335,-480.0,0.00013972,2]
[383811143,1757124647345,-480.0,0.00013972,2]
[383811144,1757124647355,-480.0,0.00013972,2]
[383811145,1757124647364,-480.0,0.00013972,2]
[383811146,1757124647374,-480.0,0.00013972,2]
[383811147,1757124647384,-480.0,0.00013972,2]
[383811148,1757124647394,-480.0,0.00013972,2]
[383811149,1757124647404,-480.0,0.00013972,2]
[383811150,1757124647414,-480.0,0.00013972,2]
[383811151,1757124647424,-481.84014557,0.00013972,2]
[383811152,1757124647434,-482.26292009,0.00013972,2]
[383811153,1757124647443,-480.0,0.00013972,2]
[383811154,1757124647453,-480.0,0.00013972,2]
[383811155,1757124647463,-493.84534807,0.00013972,2]
[383811156,1757124647473,-480.0,0.00013972,2]
[383811157,1757124647483,-480.0,0.00013972,2]
[383811158,1757124647492,-4317.63,0.00013972,2]
[383811159,1757124647505,-480.0,0.00013972,2]
[383811160,1757124647515,-480.0,0.00013972,2]
[383811161,1757124647525,-1004.19207732,0.00013972,2]
[383811162,1757124647535,-480.0,0.00013972,2]
[383811163,1757124647545,-574.55,0.00013972,2]
[383811164,1757124647555,-480.0,0.00013972,2]
[383811165,1757124647565,-480.0,0.00013972,2]
[383811166,1757124647575,-480.0,0.00013972,2]
[383811167,1757124647585,-480.0,0.00013972,2]
[383811168,1757124647594,-480.0,0.00013972,2]
[383811169,1757124647604,-480.0,0.00013972,2]
[383811170,1757124647614,-480.0,0.00013972,2]
[383811171,1757124647624,-480.0,0.00013972,2]
[383811172,1757124647634,-487.54686105,0.00013972,2]
[383811173,1757124647644,-464.46519318,0.00013972,2]
[383811174,1757124647654,-741.51,0.00013972,2]
[383811175,1757124647664,-480.0,0.00013972,2]
[383811176,1757124647674,-482.39800868,0.00013972,2]
[383811177,1757124647684,-428.31382866,0.00013972,2]
[383811178,1757124647693,-480.0,0.00013972,2]
[383811179,1757124647703,-828.83,0.00013972,2]
[383811180,1757124647713,-480.0,0.00013972,2]
[383811181,1757124647723,-480.47,0.00013972,2]
[383811182,1757124647732,-151.0,0.00013972,2]
[383811183,1757124647742,-151.0,0.00013972,2]
[383811184,1757124647752,-682.09,0.00013972,2]
[383811185,1757124647762,-480.0,0.00013972,2]
[383811186,1757124647771,-480.0,0.00013972,2]
[383811187,1757124647780,-1241.85,0.00013972,2]
[383811188,1757124647790,-480.0,0.00013972,2]
[383811189,1757124647799,-480.0,0.00013972,2]
[383811190,1757124647809,-480.0,0.00013972,2]
[383811191,1757124647819,-242.204758,0.00013972,2]
[383811192,1757124647829,-480.0,0.00013972,2]
[383811193,1757124647838,-33.11752012,0.00013972,2]
[383811194,1757124648697,-8346.3097,0.00013397,2]
[383811199,1757124707243,666.0,0.00012706,2]
[383811208,1757125396914,168.0,0.00029008,120]
[383811226,1757125714179,297.34681963,0.00029008,120]
[383811227,1757125715809,794.80302022,0.00029008,60]
[383811336,1757125832655,-586.3422425,0.00013395,2]
[383811339,1757125832709,-131.6577575,0.00013395,2]
[383811340,1757125832719,-300.0,0.00013395,2]
[383811341,1757125832729,-853.74286229,0.00013396,2]
[383811342,1757125832740,-17749.47967242,0.00013396,2]
[383811343,1757125832751,-21557.97475259,0.00013397,2]
[383811643,1757125840305,-263.29188423,0.00013396,2]
[383811645,1757125840315,-225.59800125,0.00013396,2]
[383811647,1757125840325,-23705.58536587,0.00013397,2]
[383811649,1757125840335,-1003.98666102,0.00013397,2]
[383811651,1757125840344,-228.95070754,0.00013598,2]
[383811653,1757125840353,-10942.30656536,0.00013598,2]
[383811655,1757125840363,-300.0,0.00013664,2]
[383811657,1757125840374,-300.0,0.00013664,2]
[383811659,1757125840383,-300.0,0.00013664,2]
[383811661,1757125840393,-300.0,0.00013664,2]
[383811663,1757125840403,-300.0,0.00013664,2]
[383811665,1757125840413,-300.0,0.00013664,2]
[383811667,1757125840423,-300.0,0.00013664,2]
[383811669,1757125840432,-300.0,0.00013664,2]
[383811671,1757125840442,-300.0,0.00013664,2]
[383811673,1757125840451,-300.0,0.00013664,2]
[383811675,1757125840461,-300.0,0.00013664,2]
[383811677,1757125840470,-300.0,0.00013664,2]
[383811679,1757125840480,-300.0,0.00013664,2]
[383811681,1757125840489,-300.0,0.00013664,2]
[383811683,1757125840499,-300.0,0.00013664,2]
[383811685,1757125840508,-500.0,0.00013673,2]
[383811687,1757125840518,-500.0,0.00013673,2]
[383811689,1757125840527,-216.85279665,0.0001369,2]
[383811691,1757125840536,-325.03361943,0.00013697,2]
[383811693,1757125840546,-500.0,0.00013697,2]
[383811695,1757125840556,-500.0,0.00013697,2]
[383811697,1757125840565,-500.0,0.00013697,2]
[383811699,1757125840575,-500.0,0.00013697,2]
[383811701,1757125840584,-500.0,0.00013697,2]
[383811703,1757125840595,-514.7730232,0.00013697,2]
[383811705,1757125840605,-500.0,0.00013697,2]
[383811707,1757125840614,-500.0,0.00013697,2]
[383811709,1757125840624,-500.0,0.00013697,2]
[383811711,1757125840633,-500.0,0.00013697,2]
[383811713,1757125840642,-500.0,0.00013697,2]
[383811715,1757125840652,-248.89685099,0.00013697,2]
[383811717,1757125840661,-500.0,0.00013697,2]
[383811719,1757125840672,-500.0,0.00013697,2]
[383811721,1757125840681,-500.0,0.00013697,2]
[383811723,1757125840691,-550.0,0.00013697,2]
[383811725,1757125840700,-480.0,0.00013698,2]
[383811727,1757125840710,-480.0,0.00013698,2]
[383811729,1757125840719,-480.0,0.00013698,2]
[383811731,1757125840729,-268.16342824,0.00013698,2]
[383811733,1757125840738,-480.0,0.00013698,2]
[383811735,1757125840748,-480.0,0.00013698,2]
[383811737,1757125840757,-481.94443419,0.00013698,2]
[383811739,1757125840767,-481.58157239,0.00013698,2]
[383811741,1757125840776,-480.0,0.00013698,2]
[383811743,1757125840785,-481.63562244,0.00013698,2]
[383811745,1757125840795,-486.72747033,0.00013698,2]
[383811747,1757125840805,-485.15442888,0.00013698,2]
[383811749,1757125840814,-481.41638691,0.00013698,2]
[383811751,1757125840824,-172.43214868,0.00013698,2]
[383811753,1757125840833,-482.21429958,0.00013698,2]
[383811755,1757125840843,-482.84223938,0.00013698,2]
[383811757,1757125840853,-480.0,0.00013698,2]
[383811760,1757125840863,-480.0,0.00013698,2]
[383811762,1757125840873,-480.0,0.00013698,2]
[383811764,1757125840882,-192.89126168,0.00013698,2]
[383811766,1757125840891,-480.0,0.00013698,2]
[383811768,1757125840902,-480.0,0.00013698,2]
[383811770,1757125840915,-565.32847835,0.00013698,2]
[383811772,1757125840925,-480.0,0.00013698,2]
[383811774,1757125840934,-315.43121945,0.00013698,2]
[383811776,1757125840944,-483.02024517,0.00013698,2]
[383811778,1757125840954,-482.78166396,0.00013698,2]
[383811780,1757125840963,-483.36151747,0.00013698,2]
[383811782,1757125840972,-480.0,0.00013698,2]
[383811784,1757125840981,-629.57268172,0.00013698,2]
[383811786,1757125840991,-482.0674127,0.00013698,2]
[383811788,1757125841000,-480.0,0.00013698,2]
[383811790,1757125841010,-153.67302924,0.00013698,2]
[383811792,1757125841020,-480.0,0.00013698,2]
[383811794,1757125841029,-480.0,0.00013698,2]
[383811796,1757125841039,-480.0,0.00013698,2]
[383811798,1757125841048,-484.40695155,0.00013698,2]
[383811800,1757125841058,-480.0,0.00013698,2]
[383811802,1757125841067,-480.0,0.00013698,2]
[383811804,1757125841077,-480.0,0.00013698,2]
[383811806,1757125841087,-480.0,0.00013698,2]
[383811808,1757125841097,-481.85658362,0.00013698,2]
[383811810,1757125841106,-480.0,0.00013698,2]
[383811812,1757125841115,-343.39521146,0.00013698,2]
[383811814,1757125841124,-480.0,0.00013698,2]
[383811816,1757125841133,-480.0,0.00013698,2]
[383811818,1757125841142,-480.60601053,0.00013698,2]
[383811820,1757125841152,-480.0,0.00013698,2]
[383811822,1757125841161,-480.0,0.00013698,2]
[383811824,1757125841171,-480.0,0.00013698,2]
[383811826,1757125841180,-480.0,0.00013698,2]
[383811828,1757125841190,-480.0,0.00013698,2]
[383811830,1757125841200,-480.0,0.00013698,2]
[383811832,1757125841209,-480.0,0.00013698,2]
[383811834,1757125841219,-484.28648407,0.00013698,2]
[383811836,1757125841230,-480.0,0.00013698,2]
[383811838,1757125841239,-480.0,0.00013698,2]
[383811840,1757125841249,-480.0,0.00013698,2]
[383811842,1757125841258,-480.0,0.00013698,2]
[383811844,1757125841267,-480.0,0.00013698,2]
[383811846,1757125841277,-482.97597316,0.00013698,2]
[383811848,1757125841286,-480.0,0.00013698,2]
[383811850,1757125841296,-480.0,0.00013698,2]
[383811865,1757125841441,-480.0,0.00013698,2]
[383811867,1757125841453,-480.0,0.00013698,2]
[383811870,1757125841463,-480.0,0.00013698,2]
[383811871,1757125841473,-624.86480605,0.00013698,2]
[383811874,1757125841483,-481.69220318,0.00013698,2]
[383811876,1757125841493,-480.0,0.00013698,2]
[383811878,1757125841503,-480.0,0.00013698,2]
[383811880,1757125841512,-485.5863617,0.00013698,2]
[383811882,1757125841522,-308.68060701,0.00013698,2]
[383811884,1757125841532,-480.0,0.00013698,2]
[383811885,1757125841541,-480.0,0.00013698,2]
[383811888,1757125841553,-480.0,0.00013698,2]
[383811890,1757125841563,-480.0,0.00013698,2]
[383811892,1757125841573,-500.0,0.00013698,2]
[383811894,1757125841583,-500.0,0.00013698,2]
[383811895,1757125841593,-499.41652911,0.00013698,2]
[383811897,1757125841604,-480.0,0.00013698,2]
[383811900,1757125841614,-481.81088021,0.00013698,2]
[383811902,1757125841625,-480.0,0.00013698,2]
[383811904,1757125841636,-480.0,0.00013698,2]
[383811906,1757125841647,-484.60147916,0.00013698,2]
[383811908,1757125841658,-480.0,0.00013698,2]
[383811910,1757125841669,-480.0,0.00013698,2]
[383811912,1757125841678,-614.99994609,0.00013698,2]
[383811914,1757125841688,-482.57121973,0.00013698,2]
[383811916,1757125841698,-468.940004,0.00013698,2]
[383811918,1757125841712,-572.51871518,0.00013698,2]
[383811920,1757125841722,-480.0,0.00013698,2]
[383811922,1757125841732,-480.0,0.00013698,2]
[383811924,1757125841742,-485.40510158,0.00013698,2]
[383811926,1757125841751,-480.0,0.00013698,2]
[383811928,1757125841762,-480.0,0.00013698,2]
[383811930,1757125841772,-480.0,0.00013698,2]
[383811932,1757125841782,-480.0,0.00013698,2]
[383811934,1757125841792,-480.0,0.00013698,2]
[383811936,1757125841802,-480.0,0.00013698,2]
[383811938,1757125841812,-480.0,0.00013698,2]
[383811940,1757125841821,-482.96162122,0.00013698,2]
[383811942,1757125841831,-480.0,0.00013698,2]
[383811944,1757125841840,-480.0,0.00013698,2]
[383811946,1757125841850,-480.0,0.00013698,2]
[383811948,1757125841859,-480.0,0.00013698,2]
[383811950,1757125841869,-480.0,0.00013698,2]
[383811952,1757125841879,-480.0,0.00013698,2]
[383811954,1757125841888,-283.10377152,0.00013698,2]
[383811956,1757125841898,-480.0,0.00013698,2]
[383811958,1757125841908,-484.70216267,0.00013698,2]
[383811960,1757125841918,-480.0,0.00013698,2]
[383811962,1757125841928,-480.0,0.00013698,2]
[383811964,1757125841938,-480.0,0.00013698,2]
[383811966,1757125841948,-480.0,0.00013698,2]
[383811968,1757125841959,-484.83622505,0.00013698,2]
[383811970,1757125841969,-480.0,0.00013698,2]
[383811972,1757125841979,-486.05872859,0.00013698,2]
[383811974,1757125841990,-483.30786606,0.00013698,2]
[383811976,1757125841999,-483.86917493,0.00013698,2]
[383811978,1757125842009,-480.0,0.00013698,2]
[383811980,1757125842018,-480.0,0.00013698,2]
[383811982,1757125842028,-489.08888993,0.00013698,2]
[383811984,1757125842038,-480.0,0.00013698,2]
[383811986,1757125842047,-481.77150462,0.00013698,2]
[383811988,1757125842056,-480.0,0.00013698,2]
[383811990,1757125842066,-1009.73314547,0.00013698,2]
[383811992,1757125842076,-482.82715017,0.00013698,2]
[383811994,1757125842085,-480.0,0.00013698,2]
[383811996,1757125842095,-532.50948353,0.00013698,2]
[383811998,1757125842104,-480.0,0.00013698,2]
[383812000,1757125842114,-480.0,0.00013698,2]
[383812002,1757125842123,-480.0,0.00013698,2]
[383812004,1757125842132,-552.53239379,0.00013698,2]
[383812006,1757125842142,-480.0,0.00013698,2]
[383812008,1757125842151,-174.51989052,0.00013698,2]
[383812010,1757125842160,-480.0,0.00013698,2]
[383812012,1757125842169,-483.78245926,0.00013698,2]
[383812014,1757125842180,-480.0,0.00013698,2]
[383812016,1757125842189,-480.0,0.00013698,2]
[383812018,1757125842199,-480.0,0.00013698,2]
[383812020,1757125842211,-480.0,0.00013698,2]
[383812022,1757125842220,-480.0,0.00013698,2]
[383812024,1757125842230,-480.0,0.00013698,2]
[383812026,1757125842239,-480.0,0.00013698,2]
[383812028,1757125842249,-480.99791776,0.00013698,2]
[383812030,1757125842258,-481.17898132,0.00013698,2]
[383812032,1757125842267,-616.75356064,0.00013698,2]
[383812034,1757125842277,-480.0,0.00013698,2]
[383812036,1757125842287,-480.0,0.00013698,2]
[383812037,1757125842296,-576.47566029,0.00013698,2]
[383812038,1757125842305,-480.42486326,0.00013698,2]
[383812039,1757125842314,-464.56217576,0.00013698,2]
[383812041,1757125842323,-480.0,0.00013698,2]
[383812043,1757125842333,-480.72933949,0.00013698,2]
[383812045,1757125842342,-484.73127674,0.00013698,2]
[383812047,1757125842351,-480.0,0.00013698,2]
[383812049,1757125842361,-480.0,0.00013698,2]
[383812051,1757125842370,-480.0,0.00013698,2]
[383812053,1757125842380,-482.36852177,0.00013698,2]
[383812055,1757125842389,-480.0,0.00013698,2]
[383812057,1757125842399,-524.69330108,0.00013698,2]
[383812059,1757125842408,-480.0,0.00013698,2]
[383812061,1757125842418,-480.0,0.00013698,2]
[383812063,1757125842427,-480.0,0.00013698,2]
[383812065,1757125842436,-482.79903465,0.00013698,2]
[383812067,1757125842447,-480.0,0.00013698,2]
[383812069,1757125842456,-482.58011913,0.00013698,2]
[383812071,1757125842466,-480.0,0.00013698,2]
[383812073,1757125842476,-480.0,0.00013698,2]
[383812075,1757125842486,-480.0,0.00013698,2]
[383812077,1757125842495,-481.23277381,0.00013698,2]
[383812079,1757125842505,-480.0,0.00013698,2]
[383812081,1757125842516,-481.74430506,0.00013698,2]
[383812083,1757125842525,-480.0,0.00013698,2]
[383812085,1757125842536,-481.4073224,0.00013698,2]
[383812087,1757125842547,-376.68838568,0.00013698,2]
[383812089,1757125842558,-480.0,0.00013698,2]
[383812091,1757125842568,-480.0,0.00013698,2]
[383812094,1757125842579,-480.0,0.00013698,2]
[383812096,1757125842590,-480.0,0.00013698,2]
[383812099,1757125842599,-480.0,0.00013698,2]
[383812101,1757125842609,-480.0,0.00013698,2]
[383812104,1757125842618,-480.0,0.00013698,2]
[383812107,1757125842628,-480.0,0.00013698,2]
[383812110,1757125842642,-482.26761071,0.00013698,2]
[383812112,1757125842654,-480.0,0.00013698,2]
[383812115,1757125842664,-480.0,0.00013698,2]
[383812118,1757125842674,-480.0,0.00013698,2]
[383812121,1757125842684,-480.0,0.00013698,2]
[383812124,1757125842693,-480.0,0.00013698,2]
[383812126,1757125842706,-480.0,0.00013698,2]
[383812129,1757125842720,-480.0,0.00013698,2]
[383812131,1757125842734,-481.12848882,0.00013698,2]
[383812133,1757125842746,-481.35796312,0.00013698,2]
[383812136,1757125842760,-480.0,0.00013698,2]
[383812139,1757125842770,-521.6885042,0.00013698,2]
[383812142,1757125842781,-483.562134,0.00013698,2]
[383812146,1757125842793,-480.0,0.00013698,2]
[383812149,1757125842805,-480.0,0.00013698,2]
[383812152,1757125842816,-480.0,0.00013698,2]
[383812155,1757125842828,-482.07559973,0.00013698,2]
[383812158,1757125842841,-480.0,0.00013698,2]
[383812160,1757125842853,-480.0,0.00013698,2]
[383812162,1757125842865,-480.0,0.00013698,2]
[383812165,1757125842878,-482.43682915,0.00013698,2]
[383812167,1757125842892,-480.0,0.00013698,2]
[383812169,1757125842904,-480.89467717,0.00013698,2]
[383812171,1757125842914,-480.0,0.00013698,2]
[383812174,1757125842926,-481.40289672,0.00013698,2]
[383812176,1757125842937,-483.26421215,0.00013698,2]
[383812178,1757125842949,-503.76295068,0.00013698,2]
[383812181,1757125842961,-480.0,0.00013698,2]
[383812184,1757125842974,-480.0,0.00013698,2]
[383812186,1757125842986,-1000.0,0.00013698,2]
[383812188,1757125842997,-195.8400977,0.00013698,2]
[383812190,1757125843008,-480.0,0.00013698,2]
[383812192,1757125843018,-480.0,0.00013698,2]
[383812195,1757125843028,-482.09215496,0.00013698,2]
[383812197,1757125843040,-480.0,0.00013698,2]
[383812199,1757125843050,-480.0,0.00013698,2]
[383812201,1757125843062,-481.34344322,0.00013698,2]
[383812203,1757125843073,-484.25985846,0.00013698,2]
[383812206,1757125843085,-480.0,0.00013698,2]
[383812208,1757125843097,-480.0,0.00013698,2]
[383812210,1757125843109,-480.0,0.00013698,2]
[383812213,1757125843122,-480.85427317,0.00013698,2]
[383812215,1757125843136,-480.53628975,0.00013698,2]
[383812218,1757125843148,-480.0,0.00013698,2]
[383812220,1757125843161,-310.21856233,0.00013698,2]
[383812222,1757125843172,-480.41407927,0.00013698,2]
[383812224,1757125843182,-480.8328394,0.00013698,2]
[383812226,1757125843192,-481.65114171,0.00013698,2]
[383812228,1757125843202,-480.0,0.00013698,2]
[383812231,1757125843214,-482.3154425,0.00013698,2]
[383812233,1757125843226,-480.0,0.00013698,2]
[383812235,1757125843239,-480.65552356,0.00013698,2]
[383812238,1757125843252,-482.29867955,0.00013698,2]
[383812240,1757125843262,-480.0,0.00013698,2]
[383812242,1757125843273,-480.0,0.00013698,2]
[383812244,1757125843284,-480.0,0.00013698,2]
[383812246,1757125843294,-480.0,0.00013698,2]
[383812249,1757125843306,-480.0,0.00013698,2]
[383812251,1757125843318,-480.0,0.00013698,2]
[383812253,1757125843329,-480.0,0.00013698,2]
[383812255,1757125843339,-480.0,0.00013698,2]
[383812258,1757125843349,-500.0,0.00013698,2]
[383812260,1757125843360,-480.0,0.00013698,2]
[383812262,1757125843371,-500.0,0.00013698,2]
[383812264,1757125843386,-500.0,0.00013698,2]
[383812266,1757125843397,-480.0,0.00013698,2]
[383812269,1757125843408,-480.0,0.00013698,2]
[383812271,1757125843420,-500.0,0.00013698,2]
[383812273,1757125843430,-500.0,0.00013698,2]
[383812275,1757125843445,-506.74988602,0.00013698,2]
[383812277,1757125843465,-480.0,0.00013698,2]
[383812279,1757125843475,-480.0,0.00013698,2]
[383812282,1757125843487,-482.33827662,0.00013698,2]
[383812284,1757125843498,-480.0,0.00013698,2]
[383812286,1757125843510,-480.0,0.00013698,2]
[383812288,1757125843520,-480.0,0.00013698,2]
[383812290,1757125843531,-480.0,0.00013698,2]
[383812292,1757125843541,-480.0,0.00013698,2]
[383812295,1757125843553,-480.0,0.00013698,2]
[383812297,1757125843564,-480.0,0.00013698,2]
[383812299,1757125843575,-480.0,0.00013698,2]
[383812301,1757125843586,-482.11660005,0.00013698,2]
[383812303,1757125843596,-480.0,0.00013698,2]
[383812305,1757125843607,-480.0,0.00013698,2]
[383812307,1757125843617,-532.47,0.00013698,2]
[383812310,1757125843629,-480.0,0.00013698,2]
[383812312,1757125843640,-480.0,0.00013698,2]
[383812314,1757125843651,-480.0,0.00013698,2]
[383812316,1757125843662,-480.0,0.00013698,2]
[383812319,1757125843673,-480.0,0.00013698,2]
[383812321,1757125843685,-480.0,0.00013698,2]
[383812323,1757125843696,-480.0,0.00013698,2]
[383812325,1757125843708,-20513.65,0.00013698,2]
[383812327,1757125843720,-480.0,0.00013698,2]
[383812330,1757125843731,-1386.19,0.00013698,2]
[383812332,1757125843743,-480.0,0.00013698,2]
[383812334,1757125843754,-480.0,0.00013698,2]
[383812336,1757125843766,-484.67661226,0.00013698,2]
[383812339,1757125843778,-480.0,0.00013698,2]
[383812341,1757125843789,-480.0,0.00013698,2]
[383812343,1757125843800,-480.0,0.00013698,2]
[383812345,1757125843811,-482.51789312,0.00013698,2]
[383812347,1757125843823,-481.35564458,0.00013698,2]
[383812350,1757125843834,-567.54,0.00013698,2]
[383812352,1757125843845,-480.0,0.00013698,2]
[383812354,1757125843856,-481.69619116,0.00013698,2]